bitfinex-derivatives/quotes_ETHF0:USTF0_20251001
["timestamp","ask_amount","ask_price","bid_price","bid_amount"]
[1759315395296,3.67895166,4289.1,4289.0,3.18032]
[1759315395595,3.2078,4289.1,4289.0,8.18032]
[1759315395992,3.2078,4289.1,4289.0,48.98032]
[1759315396692,0.0233,4289.3,4289.2,2.5969]
[1759315396892,3.2078,4289.8,4289.7,1.01865]
[1759315397099,3.67889972,4289.8,4289.7,2.83185]
[1759315397597,0.47109972,4289.8,4289.7,2.83185]
[1759315397797,0.00294658,4289.9,4289.8,2.59684]
[1759315397989,0.47366816,4289.9,4289.8,2.59684]
[1759315398190,0.00294658,4289.9,4289.8,2.59684]
[1759315399199,0.42237658,4289.9,4289.8,2.59684]
[1759315399497,1.01967658,4289.9,4289.8,2.59684]
[1759315399698,1.01967658,4289.9,4289.8,2.83184]
[1759315400290,1.64577658,4289.9,4289.8,2.59684]
[1759315400486,1.64577658,4289.9,4289.8,2.4124]
[1759315400698,1.64577658,4289.9,4289.8,2.83184]
[1759315401599,1.22634658,4289.9,4289.8,2.59684]
[1759315401801,1.22634658,4289.9,4289.8,2.83184]
[1759315402101,0.00294658,4289.9,4289.8,2.83184]
[1759315405702,0.42237658,4289.9,4289.8,2.83184]
[1759315409202,0.00294658,4289.9,4289.8,2.83184]
[1759315409598,0.42237658,4289.9,4289.8,2.83184]
[1759315410598,0.42237658,4289.9,4289.8,2.59684]
[1759315410803,2.36267658,4289.9,4289.8,2.1774]
[1759315410998,1.61405,4289.7,4289.6,0.1864]
[1759315411199,1.61405,4289.7,4289.6,2.5887]
[1759315411398,0.5841,4289.7,4289.6,2.5887]
[1759315411704,1.00355,4289.7,4289.6,2.3537]
[1759315411903,1.00355,4289.7,4289.6,2.5887]
[1759315412204,1.00355,4289.7,4289.6,2.4023]
[1759315412406,0.41945,4289.7,4289.6,2.4023]
[1759315412599,0.41945,4289.7,4289.6,2.3623]
[1759315413001,0.41945,4289.7,4289.6,2.78176]
[1759315414306,0.41945,4289.7,4289.6,2.3623]
[1759315414911,0.42238658,4289.9,4289.8,1.65344]
[1759315415206,0.42238658,4289.9,4289.8,2.82174]
[1759315415906,0.42238658,4289.9,4289.8,2.1673]
[1759315416107,0.42238658,4289.9,4289.8,2.82174]
[1759315417310,0.89084866,4289.9,4289.8,2.4023]
[1759315417712,0.89084866,4289.9,4289.8,2.82174]
[1759315418305,0.89084866,4289.9,4289.8,2.4023]
[1759315418911,1.47494866,4289.9,4289.8,2.1673]
[1759315419108,2.08544866,4289.9,4289.8,2.1673]
[1759315419307,2.87114866,4289.9,4289.8,2.4023]
[1759315420109,2.87114866,4289.9,4289.8,0.9333]
[1759315420314,2.87114866,4289.9,4289.8,1.1683]
[1759315421411,2.08544866,4289.9,4289.8,2.4023]
[1759315421812,1.47494866,4289.9,4289.8,2.4023]
[1759315422312,0.89084866,4289.9,4289.8,2.4023]
[1759315423214,1.47494866,4289.9,4289.8,2.4023]
[1759315426815,0.89084866,4289.9,4289.8,2.82174]
[1759315427118,0.89084866,4289.9,4289.8,2.58674]
[1759315427311,0.89084866,4289.9,4289.8,2.4023]
[1759315427511,1.47494866,4289.9,4289.8,2.4023]
[1759315428216,0.89084866,4289.9,4289.8,2.4023]
[1759315428718,1.47494866,4289.9,4289.8,2.4023]
[1759315428920,0.89084866,4289.9,4289.8,2.4023]
[1759315429619,0.89084866,4289.9,4289.8,2.82174]
[1759315429823,0.89084866,4289.9,4289.8,2.4023]
[1759315430517,1.47494866,4289.9,4289.8,2.4023]
[1759315430824,2.08544866,4289.9,4289.8,2.4023]
[1759315431016,2.87114866,4289.9,4289.8,1.7726]
[1759315431216,2.87114866,4289.9,4289.8,1.1683]
[1759315431524,2.87114866,4289.9,4289.8,1.7726]
[1759315431916,2.87114866,4289.9,4289.8,1.1683]
[1759315433017,2.87114866,4289.9,4289.8,1.7726]
[1759315434929,2.87380767,4289.9,4289.8,1.7726]
[1759315435227,2.08810767,4289.9,4289.8,2.4023]
[1759315435527,0.89350767,4289.9,4289.8,2.1673]
[1759315435828,0.89350767,4289.9,4289.8,2.4023]
[1759315441438,0.47406767,4289.9,4289.8,2.82174]
[1759315443232,0.89349767,4289.9,4289.8,2.82174]
[1759315443433,0.47406767,4289.9,4289.8,2.82174]
[1759315444131,0.00294658,4289.9,4289.8,8.00928406]
[1759315444335,3.2078,4290.8,4290.2,2.532]
[1759315444637,3.62714,4290.8,4290.7,2.1126]
[1759315444830,4.09496711,4290.8,4290.7,2.76695]
[1759315445341,4.09755857,4290.8,4290.7,2.76980115]
[1759315445832,4.09755857,4290.8,4290.7,2.35045115]
[1759315446634,4.71035857,4290.8,4290.7,2.35045115]
[1759315447433,4.70976906,4290.8,4290.7,2.76980115]
[1759315449031,3.67762906,4290.8,4290.7,2.76980115]
[1759315449234,3.21039146,4290.8,4290.7,2.76980115]
[1759315452833,0.0233,4291.3,4291.2,2.5319]
[1759315453028,3.2078,4291.4,4291.2,2.7669]
[1759315453341,3.2078,4291.4,4291.3,42.9126]
[1759315453729,3.21036841,4291.4,4291.3,42.9126]
[1759315454637,3.96786841,4291.4,4291.0,0.3643]
[1759315454844,1.2224,4291.2,4291.1,1.1457]
[1759315455141,1.9799,4291.2,4291.1,1.7655]
[1759315456038,1.9799,4291.2,4291.1,1.5305]
[1759315456242,1.9799,4291.2,4291.1,1.1457]
[1759315456740,2.3992,4291.2,4291.1,1.1457]
[1759315457440,2.86558556,4291.2,4291.1,1.1457]
[1759315458346,1.64174,4290.9,4290.8,1.5305]
[1759315458541,2.10812556,4290.9,4290.8,1.7655]
[1759315458736,2.10812556,4290.9,4290.8,2.3476]
[1759315459144,2.86562556,4290.9,4290.8,2.3476]
[1759315459346,2.10812556,4290.9,4290.8,2.3476]
[1759315459648,2.10812556,4290.9,4290.8,2.76694]
[1759315460041,5.31592556,4290.9,4290.8,2.76694]
[1759315460244,5.31592556,4290.9,4290.8,2.3476]
[1759315462047,2.10812556,4290.9,4290.8,2.3476]
[1759315463253,0.88572556,4290.9,4290.8,2.76694]
[1759315464750,0.46638556,4290.9,4290.8,2.76694]
[1759315467058,0.88571556,4290.9,4290.8,2.76694]
[1759315467255,1.49841556,4290.9,4290.8,2.76694]
[1759315467456,1.03203,4290.9,4290.8,2.76694]
[1759315468559,0.41933,4290.9,4290.8,2.76694]
[1759315469461,1.03202,4291.0,4290.9,2.48462]
[1759315469861,1.03202,4291.0,4290.9,2.0653]
[1759315470362,2.33192,4291.0,4290.9,2.0653]
[1759315470659,1.60532,4291.0,4290.9,2.3003]
[1759315471250,2.07798624,4291.0,4290.9,2.3003]
[1759315471660,2.80458624,4291.0,4290.9,0.873]
[1759315471861,2.33194,4290.8,4290.7,1.45605115]
[1759315472051,4.81314,4290.8,4290.7,2.30315115]
[1759315472563,4.23984,4290.8,4290.7,2.30315115]
[1759315472763,4.81314,4290.8,4290.7,2.30315115]
[1759315473561,5.28612133,4290.8,4290.7,2.30315115]
[1759315474160,4.10012133,4290.8,4290.7,2.30315115]
[1759315475264,4.71282133,4290.8,4290.7,2.30315115]
[1759315476368,4.71282133,4290.8,4290.7,2.06815115]
[1759315476667,4.71282133,4290.8,4290.7,2.30315115]
[1759315476961,4.10012133,4290.8,4290.7,2.72250115]
[1759315477468,4.10012133,4290.8,4290.7,2.30315115]
[1759315478366,4.71282133,4290.8,4290.7,2.30315115]
[1759315478965,4.10012133,4290.8,4290.7,2.30315115]
[1759315479465,4.71282133,4290.8,4290.7,2.30315115]
[1759315479658,6.01272133,4290.8,4290.7,2.30315115]
[1759315480055,5.28612133,4290.8,4290.7,2.30315115]
[1759315480662,4.71282133,4290.8,4290.7,2.30315115]
[1759315482770,4.10012133,4290.8,4290.7,2.30315115]
[1759315483072,4.71282133,4290.8,4290.7,2.30315115]
[1759315483266,4.71282133,4290.8,4290.7,2.06815115]
[1759315483468,4.71282133,4290.8,4290.7,2.30315115]
[1759315483777,4.71282133,4290.8,4290.7,2.06815115]
[1759315483978,4.71282133,4290.8,4290.7,2.30315115]
[1759315484281,6.01272133,4290.8,4290.7,2.30315115]
[1759315485076,5.28612133,4290.8,4290.7,2.30315115]
[1759315485375,6.01272133,4290.8,4290.7,2.30315115]
[1759315486781,5.28612133,4290.8,4290.7,2.30315115]
[1759315487184,6.01272133,4290.8,4290.7,2.30315115]
[1759315487781,6.01272133,4290.8,4290.7,1.11085115]
[1759315487980,6.01272133,4290.8,4290.7,1.45605115]
[1759315488182,6.01272133,4290.8,4290.7,1.69105115]
[1759315488889,5.28612133,4290.8,4290.7,2.30315115]
[1759315489083,6.01272133,4290.8,4290.7,2.30315115]
[1759315490991,6.01272133,4290.8,4290.7,2.06815115]
[1759315491293,6.01272133,4290.8,4290.7,2.30315115]
[1759315492286,5.53974,4290.8,4290.7,2.30315115]
[1759315492495,6.01288931,4290.8,4290.7,2.30315115]
[1759315494791,6.01288931,4290.8,4290.7,2.72250115]
[1759315494792,4.71298931,4290.8,4290.7,2.72250115]
[1759315494996,4.10028931,4290.8,4290.7,2.72250115]
[1759315495496,4.66548931,4290.8,4290.7,2.30315115]
[1759315496093,4.66548931,4290.8,4290.7,2.72250115]
[1759315497392,5.21228931,4290.8,4290.7,2.72250115]
[1759315497598,5.90848931,4290.8,4290.7,2.30315115]
[1759315497988,5.90848931,4290.8,4290.7,2.06815115]
[1759315498192,5.90848931,4290.8,4290.7,2.30315115]
[1759315498591,5.90848931,4290.8,4290.7,2.72250115]
[1759315498792,5.21228931,4290.8,4290.7,2.72250115]
[1759315500193,4.79294931,4290.8,4290.7,2.72250115]
[1759315500393,3.68094931,4290.8,4290.7,2.72250115]
[1759315500595,0.47314931,4290.8,4290.7,2.72250115]
[1759315500795,0.47314931,4290.8,4290.7,43.52250115]
[1759315501195,0.41934,4290.8,4290.7,43.28750115]
[1759315501396,0.5468,4290.9,4290.8,2.44904]
[1759315501602,0.0233,4291.0,4290.9,2.44903]
[1759315501901,0.89232788,4291.0,4290.9,2.68403]
[1759315502098,0.47300788,4291.0,4290.9,2.68403]
[1759315502399,0.00256841,4291.4,4291.3,2.44899]
[1759315502598,0.47547619,4291.4,4291.3,2.68399]
[1759315503496,2.28367619,4291.4,4291.3,2.2647]
[1759315503803,2.70295619,4291.4,4291.3,2.2647]
[1759315504504,1.58747619,4291.4,4291.3,2.68399]
[1759315504800,1.58721925,4291.4,4291.3,2.68399]
[1759315505395,2.00649925,4291.4,4291.3,2.68399]
[1759315507402,2.0061344,4291.4,4291.3,2.68399]
[1759315508000,0.4748544,4291.4,4291.3,2.44899]
[1759315508199,0.4748544,4291.4,4291.3,2.68399]
[1759315509200,0.00256841,4291.4,4291.3,2.68399]
[1759315515606,0.00256841,4291.4,4291.3,2.44899]
[1759315515806,0.00256841,4291.4,4291.3,2.68399]
[1759315517914,0.00256841,4291.4,4291.3,43.48399]
[1759315518808,0.00256841,4291.4,4291.3,48.48399]
[1759315519115,3.773,4292.5,4292.4,2.44888]
[1759315519314,3.773,4292.5,4292.4,2.68388]
[1759315519908,3.77545307,4292.5,4292.4,2.68388]
[1759315520907,3.21025307,4292.5,4292.4,2.68388]
[1759315521909,0.00245307,4292.5,4292.4,2.68388]
[1759315522106,0.00245307,4292.5,4292.4,5.89168]
[1759315523412,0.00245307,4292.5,4292.4,46.69168]
[1759315532620,0.00245307,4292.5,4292.4,46.45668]
[1759315532923,0.00245307,4292.5,4292.4,46.69168]
[1759315534218,0.00245307,4292.5,4292.4,46.45668]
[1759315534422,0.00245307,4292.5,4292.4,46.69168]
[1759315538523,0.01770001,4293.3,4293.2,0.4191]
[1759315538723,0.58890001,4293.3,4293.2,2.6805]
[1759315538925,0.5712,4293.3,4293.2,2.6805]
[1759315539328,1.7837,4293.3,4293.2,2.6805]
[1759315539627,1.11649973,4293.3,4293.2,2.6805]
[1759315541528,2.20469973,4293.3,4293.2,1.3049]
[1759315541732,1.7837,4293.0,4292.9,4.20353]
[1759315541932,2.20282,4293.0,4292.9,4.20353]
[1759315542228,2.20282,4293.0,4292.9,4.43853]
[1759315542428,2.20282,4293.0,4292.9,5.32433]
[1759315542630,1.7837,4293.0,4292.9,5.32433]
[1759315543231,2.20282,4293.0,4292.9,5.32433]
[1759315543627,2.20282,4293.0,4292.9,5.08933]
[1759315543935,2.20282,4293.0,4292.9,5.32433]
[1759315544227,2.20282,4293.0,4292.9,5.08933]
[1759315544431,2.20282,4293.0,4292.9,4.74773]
[1759315544633,2.20282,4293.0,4292.9,5.32433]
[1759315546426,2.20282,4293.0,4292.9,5.08933]
[1759315546731,7.81120589,4293.0,4292.9,3.4428]
[1759315547626,0.5712,4292.5,4292.4,44.0078]
[1759315547830,2.20287,4292.5,4292.4,3.4428]
[1759315548138,2.20287,4292.5,4292.4,4.0194]
[1759315548331,2.20287,4292.5,4292.4,4.9052]
[1759315548725,2.20287,4292.5,4292.4,4.0936]
[1759315548930,7.20287,4292.5,4292.4,3.2078]
[1759315549130,7.20287,4292.5,4292.4,3.4428]
[1759315549735,7.20287,4292.5,4292.2,0.1863]
[1759315549736,0.41919,4292.3,4292.2,0.1863]
[1759315550034,2.20289,4292.3,4292.2,1.1208]
[1759315550228,1.53381,4292.1,4292.0,0.3259]
[1759315550433,2.20291,4292.1,4292.0,1.4467]
[1759315550632,2.20291,4292.1,4292.0,2.0233]
[1759315553130,2.20291,4292.1,4292.0,1.7883]
[1759315553337,2.20291,4292.1,4292.0,0.8858]
[1759315553641,2.67245543,4292.1,4292.0,1.1208]
[1759315553833,2.67245543,4292.1,4292.0,0.8858]
[1759315554040,2.21453,4291.9,4291.8,0.1864]
[1759315554231,0.41931,4291.1,4291.0,0.3499]
[1759315554436,0.4193,4291.2,4291.0,1.728]
[1759315554636,1.57484,4291.8,4291.7,1.1431]
[1759315554834,2.68375913,4291.8,4291.7,1.64]
[1759315556241,2.21454,4291.8,4291.7,1.64]
[1759315556842,2.21454,4291.8,4291.7,1.0722]
[1759315557134,2.21457,4291.5,4291.4,0.8372]
[1759315557340,2.21457,4291.5,4291.4,1.0722]
[1759315557937,2.21457,4291.5,4291.4,1.64]
[1759315561039,1.57487,4291.5,4291.4,1.64]
[1759315561339,1.57487,4291.5,4291.4,2.2153]
[1759315562243,2.21457,4291.5,4291.4,1.0722]
[1759315562440,2.21461,4291.1,4291.0,0.8372]
[1759315562741,2.21461,4291.1,4291.0,1.9683]
[1759315563039,1.57491,4291.1,4291.0,2.5436]
[1759315563234,1.57491,4291.1,4291.0,2.3086]
[1759315563433,2.21461,4291.1,4291.0,2.3086]
[1759315563641,2.21461,4291.1,4291.0,2.5436]
[1759315566640,2.21461,4291.1,4291.0,1.405]
[1759315566844,1.57494,4290.8,4290.7,1.40785115]
[1759315567140,2.21464,4290.8,4290.7,1.64285115]
[1759315567942,2.21464,4290.8,4290.7,1.40785115]
[1759315568142,2.21464,4290.8,4290.7,1.64285115]
[1759315568342,2.21464,4290.8,4290.7,1.40785115]
[1759315568533,2.21464,4290.8,4290.7,1.64285115]
[1759315568839,2.21464,4290.8,4290.7,1.40785115]
[1759315569045,2.21464,4290.8,4290.7,0.00285115]
[1759315569540,1.1556,4290.3,4290.2,0.1864]
[1759315569749,2.21469,4290.3,4290.2,1.2586]
[1759315570041,2.21469,4290.3,4290.2,1.0722]
[1759315570638,2.21469,4290.3,4290.2,1.07405092]
[1759315571737,2.21469,4290.3,4290.2,0.83905092]
[1759315571937,2.21469,4290.3,4290.2,0.00185092]
[1759315572243,1.7953,4289.6,4289.5,1.31557]
[1759315572442,1.1556,4289.6,4289.5,1.89087]
[1759315572638,1.1556,4289.6,4289.5,2.96307]
[1759315573040,1.57506,4289.6,4289.5,2.96307]
[1759315573234,2.21688684,4289.6,4289.5,1.97019937]
[1759315573539,2.21688684,4289.6,4289.5,0.83909937]
[1759315573746,2.21688684,4289.6,4289.5,1.07409937]
[1759315574244,2.21688684,4289.6,4289.5,0.00189937]
[1759315574647,0.58042684,4289.6,4289.5,2.31049937]
[1759315574840,0.00212684,4289.6,4289.5,2.31049937]
[1759315575147,0.58042684,4289.6,4289.5,2.54549937]
[1759315575348,0.00212684,4289.6,4289.5,2.54549937]
[1759315577544,0.00212684,4289.6,4289.5,2.31049937]
[1759315577846,0.00212684,4289.6,4289.5,2.54549937]
[1759315578039,0.00212684,4289.6,4289.5,2.31049937]
[1759315578239,0.00212684,4289.6,4289.5,2.54549937]
[1759315579754,0.8171,4291.9,4291.8,1.0933]
[1759315580051,0.75927,4292.5,4291.8,2.57353]
[1759315580241,0.75927,4292.5,4291.8,1.3283]
[1759315580242,1.9278,4291.9,4291.8,1.3283]
[1759315580442,1.9278,4291.9,4291.8,1.3293]
[1759315580641,1.93000895,4291.9,4291.8,1.3293]
[1759315581049,1.93000895,4291.9,4291.8,0.798]
[1759315581753,1.93000895,4291.9,4291.8,1.3293]
[1759315581952,1.93000895,4291.9,4291.8,2.1553]
[1759315582254,1.93000895,4291.9,4291.8,1.9193]
[1759315582446,0.00220895,4291.9,4291.8,2.1553]
[1759315582645,0.00220895,4291.9,4291.8,5.3631]
[1759315583851,3.2078,4292.6,4292.5,1.9141]
[1759315584046,4.6135,4292.6,4292.5,2.1501]
[1759315584548,5.1451,4292.6,4292.5,2.1501]
[1759315584854,5.14741941,4292.6,4292.5,2.1501]
[1759315585052,1.93961941,4292.6,4292.5,2.1501]
[1759315588146,1.93961941,4292.6,4292.5,0.7868]
[1759315588750,1.93961941,4292.6,4292.5,2.1501]
[1759315589663,1.40801941,4292.6,4292.5,2.1501]
[1759315589959,1.93961941,4292.6,4292.5,2.1501]
[1759315591051,1.40801941,4292.6,4292.5,2.1501]
[1759315591252,0.00231941,4292.6,4292.5,2.1501]
[1759315591657,0.00231941,4292.6,4292.5,2.4657]
[1759315592460,0.00231941,4292.6,4292.5,7.4657]
[1759315593457,0.00231941,4292.6,4292.5,48.2657]
[1759315595156,0.00231941,4292.6,4292.5,42.9501]
[1759315595157,0.84641941,4292.6,4292.5,42.9501]
[1759315596255,0.00231941,4292.6,4292.5,43.2657]
[1759315597762,0.00231941,4292.6,4292.5,43.68487]
[1759315598265,0.00231941,4292.6,4292.5,43.2657]
[1759315598564,0.00231941,4292.6,4292.5,43.0297]
[1759315598766,0.00231941,4292.6,4292.5,43.2657]
[1759315599169,1.26557941,4292.6,4292.5,42.9501]
[1759315599362,1.26557941,4292.6,4292.5,42.1303]
[1759315599558,1.26557941,4292.6,4292.5,42.7141]
[1759315599764,1.26557941,4292.6,4292.5,42.9501]
[1759315600366,1.26557941,4292.6,4292.5,42.1303]
[1759315600565,1.26557941,4292.6,4292.5,42.9501]
[1759315601371,1.26557941,4292.6,4292.5,41.8943]
[1759315601560,2.35877941,4292.6,4292.5,1.3303]
[1759315602568,2.35877941,4292.6,4292.5,0.7868]
[1759315603068,2.35877941,4292.6,4292.5,0.236]
[1759315603765,2.35877941,4292.6,4292.5,0.7868]
[1759315604067,2.35877941,4292.6,4292.5,1.3303]
[1759315604368,2.35877941,4292.6,4292.5,2.1501]
[1759315605661,2.35877941,4292.6,4292.5,1.3303]
[1759315605868,2.35877941,4292.6,4292.5,0.236]
[1759315606260,2.35877941,4292.6,4292.5,0.7868]
[1759315607758,0.41917,4292.5,4292.4,3.2078]
[1759315607955,2.3565,4292.2,4292.1,0.7371]
[1759315608161,2.3565,4292.2,4292.1,0.9721]
[1759315608571,2.3565,4292.2,4292.1,1.5156]
[1759315608765,2.3565,4292.2,4292.1,2.3354]
[1759315609166,2.3565,4292.2,4292.1,1.2806]
[1759315609367,2.3565,4292.2,4292.1,1.5156]
[1759315609758,2.3565,4292.2,4292.1,1.2806]
[1759315609963,2.3565,4292.2,4292.1,0.9721]
[1759315610163,2.3565,4292.2,4292.1,0.1863]
[1759315610363,2.67362,4292.0,4291.9,3.7586]
[1759315610565,2.67362,4292.0,4291.9,3.4428]
[1759315610865,2.67362,4292.0,4291.9,3.2078]
[1759315611064,2.67367,4291.5,4291.4,4.3021]
[1759315611265,2.67367,4291.5,4291.4,5.3579]
[1759315611574,2.67367,4291.5,4291.4,45.3381]
[1759315612270,2.67367,4291.5,4291.4,4.5381]
[1759315612668,1.82497,4291.5,4291.4,5.77718]
[1759315612873,1.26337,4291.5,4291.4,5.77718]
[1759315613373,1.27173,4291.9,4291.8,1.49704]
[1759315613573,1.27173,4291.9,4291.8,2.57354]
[1759315614173,0.41923,4291.9,4291.8,2.57354]
[1759315614473,0.41921,4292.1,4292.0,1.49702]
[1759315614672,1.80041,4292.1,4292.0,2.57452]
[1759315615069,1.3812,4292.1,4292.0,2.57452]
[1759315616767,0.73627,4292.5,4292.4,0.41918]
[1759315616967,2.63567,4292.5,4292.4,2.1553]
[1759315617677,2.63567,4292.5,4292.4,1.3138]
[1759315618174,2.63567,4292.5,4292.4,0.7808]
[1759315619577,2.63567,4292.5,4292.4,0.236]
[1759315620074,2.63567,4292.5,4292.4,2.1553]
[1759315620276,2.63567,4292.5,4292.4,0.236]
[1759315620468,2.63592,4292.0,4291.9,5.1271]
[1759315620779,1.80042,4292.0,4291.9,5.3621]
[1759315620971,2.63592,4292.0,4291.9,5.3621]
[1759315621370,2.63592,4292.0,4291.9,4.2856]
[1759315621878,2.63592,4292.0,4291.9,3.9876]
[1759315622182,2.63592,4292.0,4291.9,0.7798]
[1759315622479,2.63592,4292.0,4291.9,2.1543]
[1759315624283,2.63592,4292.0,4291.9,1.3128]
[1759315624582,1.80042,4292.0,4291.9,2.1543]
[1759315624786,0.8525,4292.0,4291.9,5.78133]
[1759315624986,2.31862,4292.0,4291.9,5.3621]
[1759315625175,2.63592,4292.0,4291.9,4.5206]
[1759315626483,2.63592,4292.0,4291.9,5.3621]
[1759315627082,2.63592,4292.0,4291.9,4.5206]
[1759315627272,2.63592,4292.0,4291.9,4.40683]
[1759315627781,2.2167,4292.0,4291.9,5.78133]
[1759315628184,0.8525,4292.0,4291.9,5.78133]
[1759315628383,1.3812,4292.0,4291.9,5.78133]
[1759315629086,2.2167,4292.0,4291.9,5.78133]
[1759315629287,2.63592,4292.0,4291.9,5.78133]
[1759315629689,2.63592,4292.0,4291.9,4.93983]
[1759315629991,2.63592,4292.0,4291.9,1.3128]
[1759315630787,2.63592,4292.0,4291.9,2.1543]
[1759315630987,2.31865,4291.7,4291.6,0.7312]
[1759315631189,2.31865,4291.7,4291.6,2.3407]
[1759315631484,2.31865,4291.7,4291.6,0.5448]
[1759315631790,0.8525,4291.7,4291.6,2.57356]
[1759315632285,0.41923,4291.9,4291.8,2.33854]
[1759315632486,0.41923,4291.9,4291.8,2.57354]
[1759315632887,1.27173,4291.9,4291.8,2.1543]
[1759315633280,1.27173,4291.9,4291.8,2.57354]
[1759315635285,0.41922,4292.1,4292.0,0.41922]
[1759315635485,1.27168,4292.4,4292.3,2.33849]
[1759315635688,0.41918,4292.5,4292.4,2.33847]
[1759315635887,0.41918,4292.5,4292.4,2.57347]
[1759315636090,0.00231941,4292.6,4292.5,1.49697]
[1759315636293,0.00231941,4292.6,4292.5,2.33847]
[1759315636486,0.00231941,4292.6,4292.5,2.65117]
[1759315636995,0.42147941,4292.6,4292.5,2.65117]
[1759315637188,1.27397941,4292.6,4292.5,2.65117]
[1759315637590,0.00231941,4292.6,4292.5,2.65117]
[1759315638492,0.00231941,4292.6,4292.5,3.48488221]
[1759315638694,0.00231941,4292.6,4292.5,2.65117]
[1759315639286,0.00231941,4292.6,4292.5,3.48801858]
[1759315641392,0.00231941,4292.6,4292.5,3.48748666]
[1759315642094,0.0232,4293.0,4292.9,2.32063]
[1759315642286,0.0232,4293.0,4292.9,5.76343]
[1759315642492,1.73749,4293.3,4293.2,2.3206]
[1759315642694,1.73749,4293.3,4293.2,2.5556]
[1759315642896,1.73966977,4293.3,4293.2,2.55798405]
[1759315643195,1.32057977,4293.3,4293.2,2.55798405]
[1759315643896,1.73966977,4293.3,4293.2,2.55798405]
[1759315644497,1.84457977,4293.3,4293.2,2.55798405]
[1759315644803,2.26366977,4293.3,4293.2,2.55798405]
[1759315645686,2.26366977,4293.3,4293.2,1.33378405]
[1759315645890,2.26366977,4293.3,4293.2,0.23738405]
[1759315646092,2.26366977,4293.3,4293.2,0.00238405]
[1759315646292,7.26366977,4293.3,4293.2,0.00238405]
[1759315651105,2.26366977,4293.3,4293.2,0.79068405]
[1759315651304,2.10567,4292.5,4292.4,3.2078]
[1759315651604,2.10567,4292.5,4291.9,1.2535146]
[1759315651605,2.61112,4292.0,4291.9,3.2078]
[1759315652507,2.61112,4292.0,4291.9,3.21048379]
[1759315654596,2.61112,4292.0,4291.9,3.99878379]
[1759315656305,2.61112,4292.0,4291.9,0.79098379]
[1759315661498,2.61112,4292.0,4291.9,2.53981379]
[1759315661701,1.7951,4292.3,4292.2,1.8829]
[1759315661905,1.7951,4292.3,4292.2,2.5371]
[1759315662305,1.3759,4292.3,4292.2,2.5371]
[1759315662706,1.79509,4292.3,4292.2,2.5371]
[1759315663405,1.3759,4292.3,4292.2,2.5371]
[1759315664815,1.79509,4292.3,4292.2,2.1179]
[1759315665012,0.41919,4292.3,4292.2,2.1179]
[1759315665408,1.79509,4292.3,4292.2,2.1179]
[1759315665810,1.79509,4292.3,4292.2,5.3257]
[1759315666116,2.30049,4292.3,4292.2,5.3257]
[1759315666316,2.30049,4292.3,4292.2,3.4428]
[1759315666511,2.30049,4292.3,4292.2,3.2078]
[1759315666817,2.30049,4292.3,4292.2,3.4428]
[1759315668625,2.30049,4292.3,4292.2,4.5139]
[1759315668824,2.30049,4292.3,4292.2,5.3257]
[1759315669320,0.8376,4292.3,4292.2,5.7449]
[1759315669521,1.25678,4292.4,4292.3,2.30209]
[1759315669720,1.25678,4292.4,4292.3,2.53709]
[1759315670124,1.79508,4292.4,4292.3,2.53709]
[1759315670323,2.30048,4292.4,4292.3,2.1179]
[1759315670518,2.30049,4292.3,4292.2,3.2078]
[1759315670725,2.30049,4292.3,4292.2,3.4428]
[1759315673023,2.30049,4292.3,4292.2,3.2078]
[1759315673429,2.30049,4292.3,4292.2,3.4428]
[1759315674228,2.30049,4292.3,4292.2,3.2078]
[1759315676831,2.59022,4292.0,4291.9,0.00268379]
[1759315677031,2.59022,4292.0,4291.9,0.23768379]
[1759315679335,2.59022,4292.0,4291.9,0.00268379]
[1759315681040,2.59022,4292.0,4291.9,1.79878379]
[1759315681231,2.27462,4292.0,4291.9,2.03378379]
[1759315681635,2.59022,4292.0,4291.9,2.03378379]
[1759315681832,2.59022,4292.0,4291.9,1.28858379]
[1759315683138,2.27462,4292.0,4291.9,2.03378379]
[1759315684841,2.59022,4292.0,4291.9,2.03378379]
[1759315686130,2.27462,4292.0,4291.9,2.03378379]
[1759315686335,0.41922,4292.0,4291.9,2.45301379]
[1759315686738,1.20122,4292.0,4291.9,2.45301379]
[1759315687340,1.20122,4292.0,4291.9,2.03378379]
[1759315687540,1.72352,4292.0,4291.9,2.03378379]
[1759315688049,0.41922,4292.0,4291.9,2.45301379]
[1759315688340,1.20122,4292.0,4291.9,2.45301379]
[1759315688944,1.20121,4292.1,4292.0,2.21532]
[1759315689143,0.41921,4292.1,4292.0,5.65812]
[1759315689342,0.4192,4292.3,4292.2,2.21529]
[1759315689643,0.4192,4292.3,4292.2,2.45029]
[1759315689836,0.8052,4292.5,4292.4,1.47008]
[1759315690036,0.782,4292.5,4292.4,2.45028]
[1759315690241,2.03907,4292.5,4292.4,2.45028]
[1759315690539,2.59017,4292.5,4292.4,2.45028]
[1759315690740,2.171,4292.5,4292.4,2.45028]
[1759315691542,2.59017,4292.5,4292.4,2.45028]
[1759315691740,2.171,4292.5,4292.4,2.45028]
[1759315692644,2.59017,4292.5,4292.4,2.45028]
[1759315692833,2.171,4292.5,4292.4,2.45028]
[1759315693340,2.59017,4292.5,4292.4,2.45028]
[1759315694645,2.171,4292.5,4292.4,2.45028]
[1759315695747,1.8554,4292.5,4292.4,2.45028]
[1759315695938,1.3043,4292.5,4292.4,2.45028]
[1759315697440,1.72347,4292.5,4292.4,2.45028]
[1759315697744,2.171,4292.5,4292.4,2.45028]
[1759315699446,0.8052,4292.7,4292.6,2.25016]
[1759315699646,0.8052,4292.7,4292.6,2.48516]
[1759315699843,1.3153,4292.7,4292.6,2.48516]
[1759315700550,2.22945,4292.7,4292.6,1.70506]
[1759315700947,2.22945,4292.7,4292.6,0.7454]
[1759315701141,2.22945,4292.7,4292.6,0.235]
[1759315701342,2.22945,4292.7,4292.6,0.65416]
[1759315701846,2.22945,4292.7,4292.6,0.7636]
[1759315703949,2.22945,4292.7,4292.6,1.18276]